bitfinex/quotes_ETHUSD_20251031
["timestamp","ask_amount","ask_price","bid_price","bid_amount"]
[1761899168333,0.002,3837.8,3837.6,0.02605795]
[1761899168531,0.002,3837.8,3837.6,1.85010599]
[1761899169333,0.2787,3837.7,3837.6,0.02605795]
[1761899169532,0.5473,3837.7,3837.4,0.1296]
[1761899169733,0.002,3837.8,3837.5,1.82410117]
[1761899169939,0.2706,3837.8,3837.5,1.82410117]
[1761899170139,0.2786,3837.6,3837.4,1.95374463]
[1761899170314,0.2786,3837.5,3837.4,1.95374463]
[1761899170807,0.002,3837.8,3837.5,1.82410423]
[1761899171347,0.002,3837.8,3836.9,0.4709]
[1761899171348,0.2787,3837.5,3836.9,0.001]
[1761899171501,0.2787,3837.0,3836.9,0.001]
[1761899171839,0.1296,3837.4,3836.9,0.001]
[1761899172022,0.2686,3837.0,3836.9,0.001]
[1761899172426,0.5472,3837.0,3836.9,0.001]
[1761899172734,0.2686,3837.0,3836.9,0.001]
[1761899173138,0.1296,3837.2,3836.9,0.4978]
[1761899173438,0.002,3837.8,3837.6,1.82405391]
[1761899173645,0.002,3837.8,3837.7,2.34686644]
[1761899173805,0.002,3837.8,3837.7,4.21644644]
[1761899174198,0.002,3838.2,3838.0,1.82386659]
[1761899174401,0.002,3838.2,3838.0,7.83235879]
[1761899174634,0.002,3838.2,3838.0,9.45484643]
[1761899174834,0.002,3838.2,3838.0,9.86035043]
[1761899175414,0.002,3838.2,3838.0,4.34865823]
[1761899175614,0.002,3838.2,3838.0,4.37471346]
[1761899176034,0.002,3838.2,3838.0,5.77439346]
[1761899176240,0.002,3838.2,3838.0,5.74833823]
[1761899178755,0.002,3838.5,3838.4,2.22918053]
[1761899178957,0.002,3838.5,3838.4,4.13961305]
[1761899179120,0.002,3838.5,3838.4,4.63041305]
[1761899180136,0.002,3838.5,3838.4,4.60436053]
[1761899180523,0.0012,3838.5,3838.4,4.60436053]
[1761899180724,0.0012,3838.5,3838.4,5.34129417]
[1761899181259,0.0012,3838.5,3838.4,4.44499017]
[1761899181439,0.0012,3838.5,3838.4,4.91889017]
[1761899182321,0.0012,3838.5,3838.4,4.44499017]
[1761899182526,0.0012,3838.5,3838.4,2.30837653]
[1761899182729,0.0012,3838.5,3838.4,1.82367653]
[1761899182928,0.0012,3838.5,3838.3,1.82372007]
[1761899182929,0.5483,3838.5,3838.3,1.82372007]
[1761899183169,0.2817,3838.5,3837.8,1.82394143]
[1761899183474,0.2668,3837.9,3837.2,0.1932]
[1761899183762,0.0012,3838.5,3838.2,1.82377083]
[1761899183925,0.2666,3838.3,3838.2,1.82377083]
[1761899184275,0.2666,3838.3,3837.9,1.95351116]
[1761899184276,0.2666,3838.3,3837.9,0.1296]
[1761899184476,0.0028,3838.0,3837.9,0.1296]
[1761899184778,0.0028,3838.0,3837.9,1.95351411]
[1761899185356,0.0012,3838.5,3838.2,1.82373066]
[1761899185571,0.0012,3838.5,3838.4,1.82367653]
[1761899186272,0.2678,3838.5,3838.2,0.02605387]
[1761899186474,0.2678,3838.5,3838.3,1.8237041]
[1761899186771,0.2678,3838.5,3838.4,0.02605252]
[1761899186973,0.0012,3838.5,3838.1,1.84982841]
[1761899187183,0.2666,3838.4,3838.1,0.02605455]
[1761899187356,0.2666,3838.4,3838.2,1.82372507]
[1761899187558,0.0012,3838.5,3838.3,1.84977724]
[1761899187763,0.0012,3838.5,3838.4,1.82367653]
[1761899188071,0.0012,3838.5,3838.3,0.0260532]
[1761899188254,0.0012,3838.5,3838.0,0.02605523]
[1761899188450,0.0012,3838.5,3838.4,1.82367653]
[1761899188865,0.2678,3838.5,3838.2,0.1296]
[1761899189068,0.2678,3838.5,3838.3,0.0260532]
[1761899189648,0.0012,3838.5,3838.3,0.0260532]
[1761899190379,0.0012,3838.5,3838.4,0.002]
[1761899190954,0.2678,3838.5,3838.4,1.82567653]
[1761899191943,0.2678,3838.5,3838.4,0.002]
[1761899192371,0.5483,3838.5,3838.4,0.002]
[1761899192682,2.37192902,3838.5,3838.4,0.002]
[1761899192854,2.79287796,3838.5,3838.4,0.002]
[1761899193246,10.88329196,3838.5,3838.4,0.002]
[1761899193981,8.15362396,3838.5,3838.4,0.002]
[1761899194852,10.50211496,3838.5,3838.4,0.002]
[1761899195981,20.35807396,3838.5,3838.4,0.002]
[1761899196370,17.85889996,3838.5,3838.4,0.002]
[1761899196753,26.78011196,3838.5,3838.4,0.002]
[1761899197058,24.37838096,3838.5,3838.4,0.002]
[1761899197261,7.61276396,3838.5,3838.4,0.002]
[1761899197990,17.32979896,3838.5,3838.4,0.002]
[1761899198550,17.08379696,3838.5,3838.4,0.002]
[1761899198777,17.34480796,3838.5,3838.4,0.002]
[1761899198986,17.14063696,3838.5,3838.4,0.002]
[1761899199371,4.39807894,3838.5,3838.4,0.002]
[1761899200204,4.82202796,3838.5,3838.4,0.002]
[1761899200568,34.25463896,3838.5,3838.4,0.002]
[1761899200764,21.23028396,3838.5,3838.4,0.002]
[1761899201807,3.91205796,3838.5,3838.4,0.002]
[1761899202011,4.19255796,3838.5,3838.4,0.002]
[1761899202870,2.36892894,3838.5,3838.4,0.002]
[1761899203171,2.51237796,3838.5,3838.4,0.002]
[1761899203671,2.79287796,3838.5,3838.4,0.002]
[1761899204297,2.51237796,3838.5,3838.4,0.002]
[1761899204497,0.68874894,3838.5,3838.4,0.002]
[1761899204773,0.2678,3838.5,3838.4,0.002]
[1761899204977,0.0012,3838.5,3838.4,0.002]
[1761899205874,0.0004,3838.5,3838.4,0.002]
[1761899206278,0.2672,3838.5,3838.4,0.002]
[1761899206584,2.09082902,3838.5,3838.4,0.002]
[1761899206806,2.30131192,3838.5,3838.4,0.002]
[1761899207008,0.2672,3838.5,3838.4,0.002]
[1761899207305,2.09082902,3838.5,3838.4,0.002]
[1761899207633,2.37122902,3838.5,3838.4,0.002]
[1761899208027,0.5476,3838.5,3838.4,0.002]
[1761899209137,0.2672,3838.5,3838.4,0.002]
[1761899209294,2.09082902,3838.5,3838.4,0.002]
[1761899209495,0.2672,3838.5,3838.4,0.002]
[1761899215646,2.37122902,3838.5,3838.4,0.002]
[1761899215946,2.79210806,3838.5,3838.4,0.002]
[1761899217325,2.51170806,3838.5,3838.4,0.002]
[1761899217508,0.68807904,3838.5,3838.4,0.002]
[1761899217714,0.42127904,3838.5,3838.4,0.002]
[1761899217935,0.0004,3838.5,3838.4,0.4944]
[1761899218242,0.0004,3838.5,3838.4,0.9815]
[1761899218441,0.0004,3838.5,3838.4,0.4944]
[1761899219350,0.0004,3838.5,3838.4,0.9815]
[1761899220711,0.0004,3838.5,3838.4,2.80517653]
[1761899220918,0.0004,3838.5,3838.4,3.27068108]
[1761899222871,0.0004,3838.5,3838.4,1.44700455]
[1761899223373,0.0004,3838.5,3838.4,0.4944]
[1761899224688,0.0004,3838.5,3838.4,0.002]
[1761899224850,0.13,3838.5,3838.4,0.002]
[1761899225347,0.3966,3838.5,3838.4,0.002]
[1761899227350,2.22022902,3838.5,3838.4,0.002]
[1761899227680,3.39615557,3838.5,3838.4,0.002]
[1761899229565,25.57584457,3838.5,3838.4,0.002]
[1761899229764,3.80165957,3838.5,3838.4,0.002]
[1761899230089,20.35945357,3838.5,3838.4,0.002]
[1761899230256,11.69299357,3838.5,3838.4,0.002]
[1761899230458,4.51533557,3838.5,3838.4,0.002]
[1761899230674,0.13,3838.5,3838.4,0.002]
[1761899231078,1.82559656,3838.6,3838.4,0.002]
[1761899232000,2.09042902,3838.5,3838.4,0.002]
[1761899232202,2.37082902,3838.5,3838.4,0.002]
[1761899233055,2.09042902,3838.5,3838.4,0.002]
[1761899233259,2.51126755,3838.5,3838.4,0.002]
[1761899234492,0.68763853,3838.5,3838.4,0.002]
[1761899234699,0.70153853,3838.5,3838.4,0.002]
[1761899234901,0.2807,3838.5,3838.4,0.002]
[1761899235607,2.10432902,3838.5,3838.4,0.002]
[1761899237283,2.37092902,3838.5,3838.4,0.002]
[1761899238492,2.10432902,3838.5,3838.4,0.002]
[1761899239609,0.2807,3838.5,3838.4,0.002]
[1761899239796,1.82562216,3838.6,3838.4,0.002]
[1761899240001,2.3431808,3838.6,3838.4,0.002]
[1761899240224,2.09022902,3838.5,3838.4,0.002]
[1761899242791,2.09222902,3838.5,3838.4,0.002]
[1761899244416,2.37272902,3838.5,3838.4,0.002]
[1761899245157,2.09222902,3838.5,3838.4,0.002]
[1761899245458,2.70497992,3838.5,3838.4,0.002]
[1761899249271,2.98547992,3838.5,3838.4,0.002]
[1761899249766,29.92104692,3838.5,3838.4,0.002]
[1761899249928,24.91985592,3838.5,3838.4,0.002]
[1761899250127,23.08309692,3838.5,3838.4,0.002]
[1761899250328,18.47915692,3838.5,3838.4,0.002]
[1761899250861,18.28125692,3838.5,3838.4,0.002]
[1761899251859,18.47915692,3838.5,3838.4,0.002]
[1761899252073,16.27915692,3838.5,3838.4,0.002]
[1761899252646,15.99865692,3838.5,3838.4,0.002]
[1761899253442,20.89737503,3838.5,3838.4,0.002]
[1761899254864,22.95157703,3838.5,3838.4,0.002]
[1761899255265,23.35708103,3838.5,3838.4,0.002]
[1761899255465,21.83231303,3838.5,3838.4,0.002]
[1761899255848,22.03226103,3838.5,3838.4,0.002]
[1761899256048,17.49506403,3838.5,3838.4,0.002]
[1761899256249,17.49426403,3838.5,3838.4,0.002]
[1761899256450,12.90917603,3838.5,3838.4,0.002]
[1761899256779,10.63720903,3838.5,3838.4,0.002]
[1761899256974,12.16878503,3838.5,3838.4,0.002]
[1761899257880,17.99975403,3838.5,3838.4,0.002]
[1761899258768,17.31375003,3838.5,3838.4,0.002]
[1761899258961,16.21604303,3838.5,3838.4,0.002]
[1761899259379,15.50891403,3838.5,3838.4,0.002]
[1761899259576,15.22091403,3838.5,3838.4,0.002]
[1761899259745,13.97317403,3838.5,3838.4,0.002]
[1761899259946,7.60289803,3838.5,3838.4,0.002]
[1761899260153,7.33629803,3838.5,3838.4,0.002]
[1761899260349,1.82562902,3838.5,3838.4,0.4986]
[1761899262192,6.72434713,3838.5,3838.4,0.4986]
[1761899263588,1.82562902,3838.5,3838.4,0.984]
[1761899264092,1.82562902,3838.5,3838.4,0.002]
[1761899264299,6.72434713,3838.5,3838.4,0.002]
[1761899264592,6.72434713,3838.5,3838.4,0.4986]
[1761899264912,6.99094713,3838.5,3838.4,0.002]
[1761899265455,8.0137642,3838.5,3838.4,0.002]
[1761899266702,18.3130272,3838.5,3838.4,0.002]
[1761899266897,16.9984402,3838.5,3838.4,0.002]
[1761899267122,18.8036242,3838.5,3838.4,0.002]
[1761899267819,27.6455352,3838.5,3838.4,0.002]
[1761899268022,19.1114512,3838.5,3838.4,0.002]
[1761899268236,12.0017062,3838.5,3838.4,0.002]
[1761899268579,12.2822062,3838.5,3838.4,0.002]
[1761899268829,21.9265492,3838.5,3838.4,0.002]
[1761899269823,22.4829192,3838.5,3838.4,0.002]
[1761899270797,23.5339602,3838.5,3838.4,0.002]
[1761899272030,30.5914992,3838.5,3838.4,0.002]
[1761899272407,22.0124042,3838.5,3838.4,0.002]
[1761899272955,25.7577212,3838.5,3838.4,0.002]
[1761899273712,24.7252342,3838.5,3838.4,0.002]
[1761899273907,23.6901852,3838.5,3838.4,0.002]
[1761899274445,23.2582062,3838.5,3838.4,0.002]
[1761899274834,31.09504412,3838.5,3838.4,0.002]
[1761899275349,30.70255512,3838.5,3838.4,0.002]
[1761899275759,30.80699662,3838.5,3838.4,0.002]
[1761899275917,32.90042762,3838.5,3838.4,0.002]
[1761899276224,32.31600262,3838.5,3838.4,0.002]
[1761899276545,22.8086347,3838.5,3838.4,0.002]
[1761899276737,22.3456447,3838.5,3838.4,0.002]
[1761899276934,25.3524737,3838.5,3838.4,0.002]
[1761899277128,26.05872865,3838.5,3838.4,0.002]
[1761899277944,40.91014465,3838.5,3838.4,0.002]
[1761899278123,39.06618065,3838.5,3838.4,0.002]
[1761899278644,38.84198665,3838.5,3838.4,0.002]
[1761899278828,36.27895565,3838.5,3838.4,0.002]
[1761899279032,28.62252765,3838.5,3838.4,0.002]
[1761899279433,29.23608067,3838.5,3838.4,0.002]
[1761899279961,20.86492875,3838.5,3838.4,0.002]
[1761899280161,21.14542875,3838.5,3838.4,0.002]
[1761899281020,26.45537662,3838.5,3838.4,0.002]
[1761899281363,30.65603175,3838.5,3838.4,0.002]
[1761899281518,15.56093962,3838.5,3838.4,0.002]
[1761899281718,8.69952762,3838.5,3838.4,0.002]
[1761899282018,5.96105305,3838.5,3838.4,0.961]
[1761899282214,6.84495705,3838.5,3838.4,0.961]
[1761899282962,8.64398905,3838.5,3838.4,0.961]
[1761899283323,8.64398905,3838.5,3838.4,0.4846]
[1761899283818,8.64398905,3838.5,3838.4,0.961]
[1761899283819,4.11155905,3838.5,3838.4,0.961]
[1761899284034,1.82482902,3838.5,3838.4,0.961]
[1761899285153,0.0012,3838.5,3838.4,0.961]
[1761899286364,1.82482902,3838.5,3838.4,0.961]
[1761899286562,0.0012,3838.5,3838.4,0.961]
[1761899288937,0.0012,3838.5,3838.4,1.23948153]
[1761899290061,0.1308,3838.5,3838.4,1.23948153]
[1761899290262,0.1308,3838.5,3838.4,2.78467653]
[1761899290559,0.0012,3838.5,3838.4,0.98705252]
[1761899290926,0.0012,3838.5,3838.4,0.961]
[1761899291549,0.0012,3838.5,3838.4,2.78467653]
[1761899291760,0.0012,3838.5,3838.4,3.25848373]
[1761899291953,0.0012,3838.5,3838.4,3.39808373]
[1761899292556,0.0012,3838.5,3838.4,1.5744072]
[1761899292737,0.0012,3838.5,3838.4,1.1006]
[1761899293392,0.0012,3838.5,3838.4,2.92427653]
[1761899293872,0.0012,3838.5,3838.4,1.1006]
[1761899297105,0.0012,3838.5,3838.4,0.961]
[1761899297370,0.0012,3838.5,3838.4,1.1006]
[1761899297942,0.0012,3838.5,3838.4,2.92427653]
[1761899298136,0.0012,3838.5,3838.4,3.41464649]
[1761899298458,0.0012,3838.5,3838.4,3.57029901]
[1761899300777,0.0012,3838.5,3838.4,3.54424649]
[1761899300984,0.0012,3838.5,3838.4,4.96997901]
[1761899306496,0.0981,3841.2,3839.2,1.82329652]
[1761899306712,0.0002,3839.3,3839.2,9.93432891]
[1761899306997,0.0002,3839.3,3839.2,10.52498182]
[1761899307183,0.0002,3839.3,3839.2,10.65458182]
[1761899312134,0.0002,3839.3,3839.2,9.25490182]
[1761899313795,0.24718681,3840.6,3839.6,1.82310657]
[1761899313983,0.1296,3839.9,3839.6,0.4805]
[1761899314497,0.1296,3839.9,3839.8,0.4805]
[1761899314997,0.1296,3839.9,3839.8,2.30351161]
[1761899315296,0.1296,3839.9,3839.8,2.79061161]
[1761899315502,0.01,3840.7,3839.8,2.79061161]
[1761899315503,0.01,3840.7,3839.8,2.81665463]
[1761899315673,0.1296,3840.3,3840.2,1.82282172]
[1761899315882,0.1296,3840.5,3839.9,0.6167]
[1761899316083,0.1296,3840.5,3840.2,0.50645569]
[1761899317200,0.1296,3840.5,3840.2,2.8163577]
[1761899317406,0.1296,3840.5,3840.2,0.50645569]
[1761899317784,0.1296,3840.5,3840.2,2.32926297]
[1761899317984,0.1296,3840.5,3840.2,0.50645569]
[1761899319535,0.2472,3840.3,3840.2,0.50645569]
[1761899320009,0.1296,3840.5,3840.2,1.47405569]
[1761899320593,0.1296,3840.5,3840.2,0.50645569]
[1761899320792,0.32581863,3840.5,3840.2,0.50645569]
[1761899321634,0.32581863,3840.5,3840.4,0.4805]
[1761899321792,0.1296,3840.5,3840.4,0.4805]
[1761899322142,0.1296,3840.5,3840.4,0.9676]
[1761899322293,0.01,3840.7,3840.6,1.82263188]
[1761899322496,0.01,3840.7,3840.6,2.30313188]
[1761899322824,0.01,3840.7,3840.4,0.1296]
[1761899322825,0.2572,3840.7,3840.4,0.1296]
[1761899322993,0.01,3840.7,3840.4,0.1296]
[1761899323409,0.01,3840.7,3840.4,1.95232098]
[1761899323756,0.01,3840.7,3840.6,0.4805]
[1761899324814,0.01,3840.7,3840.6,2.30313188]
[1761899325245,0.01,3840.7,3840.6,2.79023188]
[1761899325655,0.01,3840.7,3840.6,4.66417149]
[1761899326314,0.01,3840.7,3840.6,2.30313188]
[1761899327014,0.01,3840.7,3840.6,2.79023188]
[1761899327412,0.011,3840.7,3840.6,2.79023188]
[1761899328465,0.011,3840.7,3840.6,3.03743188]
[1761899331859,0.0102,3840.7,3840.6,3.03743188]
[1761899332258,0.0102,3840.7,3840.6,3.16703188]
[1761899332844,0.0102,3840.7,3840.6,2.19943188]
[1761899333239,0.0102,3840.7,3840.6,2.69563188]
[1761899333540,0.0102,3840.7,3840.6,3.15203188]
[1761899335262,0.0102,3840.7,3840.6,3.64950647]
[1761899337248,0.0102,3840.7,3840.6,0.3768]
[1761899337447,0.2574,3840.7,3840.6,2.19943188]
[1761899337767,0.2574,3840.7,3840.6,0.2472]
[1761899338663,0.5046,3840.7,3840.2,0.1296]
[1761899338849,0.2574,3840.7,3840.3,0.2574]
[1761899339247,0.2472,3840.4,3840.3,0.2574]
[1761899340440,0.2472,3840.4,3839.9,1.82494833]
[1761899340441,0.2472,3840.4,3839.9,0.002]
[1761899340642,0.2452,3840.0,3839.9,0.1316]
[1761899340883,0.1296,3840.5,3839.9,2.2119395]
[1761899341251,0.3768,3840.5,3839.9,2.2119395]
[1761899341446,0.3768,3840.5,3840.0,1.82291068]
[1761899341645,0.3768,3840.5,3839.9,2.21195962]
[1761899341975,0.3768,3840.5,3839.9,0.389]
[1761899342368,0.3768,3840.5,3839.9,2.21195785]
[1761899342567,0.2472,3840.0,3839.9,0.389]
[1761899342770,0.2472,3840.0,3839.9,0.2594]
[1761899342971,0.2472,3840.0,3839.9,0.002]
[1761899343169,0.0102,3840.7,3839.9,0.4982]
[1761899343353,0.2574,3840.7,3839.9,0.4982]
[1761899343555,2.07999697,3840.7,3839.9,0.4982]
[1761899343767,0.2144597,3840.6,3839.9,0.4982]
[1761899343963,0.2574,3840.7,3839.9,0.4982]
[1761899344167,0.2574,3840.7,3839.9,2.3211228]
[1761899344879,0.0102,3840.7,3839.9,0.9546]
[1761899345095,0.0102,3840.7,3840.0,1.82291666]
[1761899346446,0.0102,3840.7,3839.9,0.4584]
[1761899347355,0.0102,3840.7,3840.1,1.82286318]
[1761899347683,0.0102,3840.7,3840.2,1.82281472]
[1761899347891,0.0102,3840.7,3839.9,2.30739368]
[1761899347892,0.0102,3840.7,3840.6,0.4962]
[1761899349864,0.0102,3840.7,3840.6,0.9526]
[1761899350401,0.001,3841.1,3841.0,1.82244207]
[1761899350620,0.001,3841.1,3841.0,7.6930347]
[1761899350765,0.001,3841.1,3841.0,9.06667982]
[1761899351778,0.01,3841.7,3841.4,1.8222523]
[1761899352107,0.01,3841.7,3841.4,7.23644222]
[1761899352263,0.01,3841.7,3841.4,8.63754693]
[1761899352468,0.01,3841.7,3841.4,10.03722693]
[1761899352660,0.01,3841.7,3841.4,5.27486918]
[1761899357082,0.0002,3841.5,3841.4,5.27486918]
[1761899358402,0.2584,3843.4,3842.6,6.71364098]
[1761899358610,0.1296,3843.2,3842.6,8.05518582]
[1761899358823,0.1296,3843.2,3842.6,8.18478582]
[1761899359351,0.01,3843.7,3842.6,0.98314484]
[1761899359352,0.2684,3842.7,3842.6,0.98314484]
[1761899359493,0.01,3842.7,3842.4,4.89195775]
[1761899359693,0.01,3842.7,3842.6,1.82168323]
[1761899359934,0.01,3842.7,3842.6,2.30968323]
[1761899360137,0.01,3842.7,3842.6,3.26462578]
[1761899360336,0.01,3842.7,3842.6,3.76462578]
[1761899361203,0.01,3842.7,3842.6,5.56980978]
[1761899361805,0.01,3842.7,3842.6,5.16430578]
[1761899362695,0.01,3842.7,3842.6,5.56980978]
[1761899362897,0.011,3842.7,3842.6,5.56980978]
[1761899363350,0.01,3843.7,3843.6,1.82120928]
[1761899363645,0.2584,3845.5,3844.6,1.82073557]
[1761899363811,0.2584,3845.5,3844.6,8.58827332]
[1761899364008,0.2584,3845.5,3844.6,9.08827332]
[1761899364345,0.01,3845.7,3844.6,9.08827332]
[1761899365343,0.01,3845.7,3844.6,10.62366419]
[1761899365662,1e-08,3844.7,3844.6,10.62366419]
[1761899365861,1e-08,3844.7,3844.6,11.86811216]
[1761899367512,0.01,3845.7,3845.6,1.82026211]
[1761899367722,0.01,3845.7,3845.6,2.29616211]
[1761899367943,0.01,3845.7,3845.6,2.82216585]
[1761899368322,0.01,3845.7,3845.6,4.19584211]
[1761899368524,0.01,3845.7,3845.6,4.81666011]
[1761899369149,0.01,3845.7,3845.6,4.31666011]
[1761899369312,0.01,3845.7,3845.6,4.81666011]
[1761899369518,0.01,3845.7,3845.6,4.94626011]
[1761899370233,0.01,3845.7,3845.6,3.125998]
[1761899370447,0.01,3845.7,3845.6,2.50518]
[1761899370650,0.01,3845.7,3845.6,4.32544211]
[1761899372063,0.01,3845.7,3845.6,4.35144585]
[1761899373136,0.01,3845.7,3845.6,4.22184585]
[1761899373749,0.01,3845.7,3845.6,4.19584211]
[1761899373935,0.01,3845.7,3845.6,4.84266383]
[1761899374147,0.01,3845.7,3845.6,4.81666009]
[1761899374652,0.01,3845.7,3845.6,4.31666009]
[1761899375249,0.2684,3845.7,3845.1,0.10418905]
[1761899375561,0.2584,3845.6,3845.1,0.192]
[1761899375738,0.01,3845.7,3845.4,1.82035058]
[1761899375933,0.01,3845.7,3845.2,0.02600644]
[1761899375934,0.01,3845.7,3845.5,0.02600442]
[1761899376151,0.01,3845.7,3845.3,0.02600577]
[1761899376351,0.01,3845.7,3845.4,1.82034374]
[1761899376582,0.01,3845.7,3845.5,1.84630256]
[1761899376892,0.01,3845.7,3845.5,0.02600442]
[1761899377071,0.01,3845.7,3845.5,1.84628998]
[1761899377376,0.01,3845.7,3845.3,1.82040308]
[1761899377555,0.01,3845.7,3845.1,0.192]
[1761899377556,0.2584,3845.6,3845.1,0.192]
[1761899377756,0.2584,3845.6,3845.3,1.82039606]
[1761899377980,0.2584,3845.6,3845.3,1.8203994]
[1761899378542,0.01,3845.7,3845.3,0.57326161]
[1761899378758,0.01,3845.7,3845.4,1.84636185]
[1761899378955,0.01,3845.7,3845.4,1.82031331]
[1761899379205,0.01,3845.7,3845.5,1.82028723]
[1761899379558,0.01,3845.7,3845.6,0.02600374]
[1761899379962,0.2684,3845.7,3845.5,1.82030836]
[1761899380160,0.2684,3845.7,3845.2,0.02600644]
[1761899380161,0.2684,3845.7,3845.3,1.82039361]
[1761899380358,0.0329,3845.4,3844.6,0.502]
[1761899380562,0.0329,3845.4,3845.2,1.82043953]
[1761899380859,0.0329,3845.4,3844.6,0.502]
[1761899381077,0.0329,3845.4,3845.1,1.82049256]
[1761899381287,0.2913,3845.4,3844.6,0.002]
[1761899381690,0.2561,3844.7,3844.6,0.002]
[1761899381896,0.2561,3844.7,3844.6,1.82273557]
[1761899382091,0.2561,3844.7,3844.6,0.002]
[1761899382290,0.2553,3844.7,3844.6,0.002]
[1761899382694,0.124,3844.8,3844.7,1.82068822]
[1761899383070,0.124,3844.8,3844.7,1.95028822]
[1761899383270,0.1296,3845.4,3844.7,0.1296]
[1761899383676,0.1296,3845.4,3844.8,1.82063478]
[1761899383881,0.35134207,3845.4,3844.7,0.1296]
[1761899384081,0.1296,3845.4,3844.7,0.1296]
[1761899384277,0.1296,3845.4,3844.8,1.82064086]
[1761899384682,0.2576,3844.9,3844.7,0.1296]
[1761899384885,0.2797,3844.8,3844.6,0.002]
[1761899385093,0.1346,3844.7,3844.6,0.002]
[1761899385293,0.3922,3844.7,3844.6,0.002]
[1761899385493,0.1346,3844.7,3844.6,0.002]
[1761899386115,0.2576,3845.4,3844.6,0.4779]
[1761899386323,0.2576,3845.6,3844.7,1.84669805]
[1761899386518,0.44760219,3845.6,3844.7,1.84669805]
[1761899386818,0.2576,3845.5,3844.7,1.82068822]
[1761899387022,0.2576,3845.5,3844.6,0.002]
[1761899387218,0.2576,3845.5,3844.8,1.82059463]
[1761899387445,0.47336205,3845.5,3844.8,1.82059463]
[1761899387720,0.2576,3844.9,3844.6,1.82273321]
[1761899389021,0.2576,3844.9,3844.6,0.002]
[1761899389022,0.1232,3844.9,3844.6,0.002]
[1761899389385,0.2576,3844.7,3844.6,0.002]
[1761899389623,0.2576,3844.7,3844.6,1.82273152]
[1761899389823,0.2576,3844.7,3844.6,0.002]
[1761899391241,0.5152,3844.7,3844.6,0.002]
[1761899391938,2.07828822,3844.7,3844.6,0.002]
[1761899392150,18.17656495,3844.7,3844.6,0.002]
[1761899392346,16.57047395,3844.7,3844.6,0.002]
[1761899392508,15.45072195,3844.7,3844.6,0.002]
[1761899392712,15.29441746,3844.7,3844.6,0.002]
[1761899393338,15.84299546,3844.7,3844.6,0.002]
[1761899393944,8.27280146,3844.7,3844.6,0.002]
[1761899394241,2.84237046,3844.7,3844.6,0.002]
[1761899394406,2.73809695,3844.7,3844.6,0.002]
[1761899395443,15.21439495,3844.7,3844.6,0.002]
[1761899395612,7.27367095,3844.7,3844.6,0.002]
[1761899395810,2.73809695,3844.7,3844.6,0.002]
[1761899396010,0.91740873,3844.7,3844.6,0.002]
[1761899396319,0.2576,3844.7,3844.6,0.002]
[1761899399257,0.5152,3844.7,3844.6,0.002]
[1761899399767,0.5162,3844.7,3844.6,0.002]
[1761899400154,0.2586,3844.7,3844.6,0.002]
[1761899400356,0.5162,3844.7,3844.6,0.002]
[1761899400732,0.2586,3844.7,3844.6,0.002]
[1761899401236,14.60003822,3844.7,3844.6,0.002]
[1761899401472,9.91217431,3844.7,3844.6,0.002]
[1761899401771,10.07382131,3844.7,3844.6,0.002]
[1761899402372,8.64086931,3844.7,3844.6,0.002]
[1761899402538,11.08187431,3844.7,3844.6,0.002]
[1761899403165,7.69287731,3844.7,3844.6,0.002]
[1761899403365,6.03849222,3844.7,3844.6,0.002]
[1761899403572,14.68465022,3844.7,3844.6,0.002]
[1761899404069,4.82431422,3844.7,3844.6,0.002]
[1761899404258,7.87524222,3844.7,3844.6,0.002]
[1761899404645,7.40036222,3844.7,3844.6,0.002]
[1761899404846,6.25649149,3844.7,3844.6,0.002]
[1761899405046,1.19301749,3844.7,3844.6,0.002]
[1761899405235,0.2586,3844.7,3844.6,0.002]
[1761899405442,0.001,3844.7,3844.6,0.4544]
[1761899405950,0.001,3844.7,3844.6,2.27513557]
[1761899406534,0.001,3844.7,3844.6,0.4544]
[1761899406770,0.001,3844.7,3844.6,0.002]
[1761899407586,0.0002,3844.7,3844.6,0.002]
[1761899407881,0.0002,3844.7,3844.6,2.86603557]
[1761899408054,0.0002,3844.7,3844.6,3.36353339]
[1761899408255,0.0002,3844.7,3844.6,3.33752289]
[1761899408772,0.0002,3844.7,3844.6,4.76321339]
[1761899409079,0.0002,3844.7,3844.6,4.73720289]
[1761899411464,0.0002,3844.7,3844.6,4.76321339]
[1761899412076,0.0002,3844.7,3844.6,5.16871739]
[1761899412262,0.0002,3844.7,3844.6,5.14270689]
[1761899412440,0.0002,3844.7,3844.6,5.01310689]
[1761899412637,0.0002,3844.7,3844.6,5.03911739]
[1761899413575,0.0002,3844.7,3844.6,5.01310689]
[1761899413873,0.0002,3844.7,3844.6,8.86310689]
[1761899417780,0.01,3846.7,3846.6,1.8197889]
[1761899418082,0.01,3846.7,3846.5,1.81983266]
[1761899418260,0.01,3846.7,3846.6,1.8197889]
[1761899418447,0.01,3846.7,3846.4,1.81987517]
[1761899418641,0.2576,3846.5,3845.9,2.29140265]
[1761899418859,0.2576,3846.5,3845.6,2.48802303]
[1761899419178,0.01,3846.7,3846.4,0.4925]
[1761899419381,0.01,3846.7,3846.6,1.8197889]
[1761899419783,0.01,3846.7,3846.6,2.3122889]
[1761899420479,0.01,3846.7,3846.6,2.8035889]
[1761899420785,0.01,3847.7,3847.3,1.81941781]
[1761899420980,0.01,3847.7,3846.8,1.84568992]
[1761899421180,0.01,3847.7,3847.6,0.6473]
[1761899421383,0.01,3847.7,3847.6,2.28451593]
[1761899421685,0.01,3847.7,3847.6,4.20148615]